fUSD/lending_fUSD_20240211
["ID","MTS","AMOUNT","RATE_DAILY","PERIOD"]
[313720844,1707610253862,-515.59032143,0.00038356,30]
[313720845,1707610253871,-500.0,0.00038356,30]
[313720846,1707610253880,-246.4197746,0.00038356,30]
[313720847,1707610253891,-552.96628032,0.00038356,30]
[313720848,1707610253904,-500.0,0.00038356,30]
[313720849,1707610253914,-500.0,0.00038356,30]
[313720850,1707610253924,-500.0,0.00038356,30]
[313720851,1707610253934,-500.0,0.00038356,30]
[313720852,1707610253947,-500.0,0.00038356,30]
[313720853,1707610253956,-500.0,0.00038356,7]
[313720854,1707610253965,-794.14,0.00038356,30]
[313720855,1707610253974,-500.0,0.00038356,30]
[313720856,1707610253984,-511.94285043,0.00038356,30]
[313720857,1707610253993,-534.09,0.00038356,30]
[313720858,1707610254006,-500.0,0.00038356,30]
[313720859,1707610254015,-451.11553576,0.00038356,30]
[313720860,1707610254024,-500.0,0.00038356,30]
[313720861,1707610254034,-500.0,0.00038356,30]
[313720862,1707610254044,-500.0,0.00038356,30]
[313720863,1707610254053,-630.74495791,0.00038356,30]
[313720864,1707610254062,-500.0,0.00038356,30]
[313720865,1707610254071,-500.0,0.00038356,30]
[313720866,1707610254081,-500.0,0.00038356,30]
[313720867,1707610254091,-500.0,0.00038356,30]
[313720868,1707610254100,-500.0,0.00038356,30]
[313720869,1707610254109,-458.70644978,0.00038356,30]
[313720870,1707610254118,-500.0,0.00038356,30]
[313720871,1707610254127,-500.0,0.00038356,30]
[313720872,1707610254137,-500.0,0.00038356,30]
[313720873,1707610254146,-500.0,0.00038356,3]
[313720874,1707610254155,-575.23,0.00038356,30]
[313720875,1707610254164,-500.0,0.00038356,30]
[313720876,1707610254174,-500.0,0.00038356,30]
[313720877,1707610254184,-500.0,0.00038356,30]
[313720878,1707610254194,-1355.68,0.00038356,30]
[313720879,1707610254205,-500.0,0.00038356,30]
[313720880,1707610254215,-553.512268,0.00038356,30]
[313720881,1707610254225,-511.2529416,0.00038356,30]
[313720882,1707610254235,-500.0,0.00038356,30]
[313720883,1707610254246,-500.0,0.00038356,30]
[313720884,1707610254257,-500.0,0.00038356,30]
[313720885,1707610254267,-502.76104859,0.00038356,30]
[313720886,1707610254276,-500.0,0.00038356,30]
[313720887,1707610254285,-500.0,0.00038356,30]
[313720888,1707610254294,-653.77,0.00038356,30]
[313720889,1707610254303,-500.0,0.00038356,30]
[313720890,1707610254312,-500.0,0.00038356,30]
[313720891,1707610254323,-500.0,0.00038356,30]
[313720892,1707610254332,-500.0,0.00038356,30]
[313720893,1707610254341,-500.0,0.00038356,30]
[313720894,1707610254352,-500.0,0.00038356,30]
[313720895,1707610254362,-500.0,0.00038356,30]
[313720896,1707610254371,-500.0,0.00038356,30]
[313720897,1707610254380,-500.0,0.00038356,30]
[313720898,1707610254389,-500.0,0.00038356,30]
[313720899,1707610254398,-3997.34,0.00038356,30]
[313720900,1707610254407,-500.0,0.00038356,7]
[313720901,1707610254416,-500.0,0.00038356,30]
[313720902,1707610254425,-500.0,0.00038356,30]
[313720903,1707610254434,-502.52783856,0.00038356,30]
[313720904,1707610254443,-500.0,0.00038356,30]
[313720905,1707610254452,-500.0,0.00038356,30]
[313720906,1707610254462,-500.0,0.00038356,30]
[313720907,1707610254471,-500.0,0.00038356,30]
[313720908,1707610254480,-500.0,0.00038356,30]
[313720909,1707610254490,-499.81440704,0.00038356,30]
[313720910,1707610254510,-3112.45,0.00038356,30]
[313720911,1707610254526,-500.0,0.00038356,30]
[313720912,1707610254535,-500.0,0.00038356,30]
[313720913,1707610254544,-500.0,0.00038356,30]
[313720914,1707610254554,-500.0,0.00038356,30]
[313720915,1707610254563,-500.0,0.00038356,30]
[313720916,1707610254572,-500.0,0.00038356,30]
[313720917,1707610254581,-1670.08,0.00038356,30]
[313720918,1707610254590,-500.0,0.00038356,30]
[313720919,1707610254600,-500.0,0.00038356,30]
[313720920,1707610254609,-500.0,0.00038356,30]
[313720921,1707610254618,-500.0,0.00038356,30]
[313720922,1707610254627,-500.0,0.00038356,30]
[313720923,1707610254638,-500.0,0.00038356,30]
[313720924,1707610254647,-515.69967859,0.00038356,30]
[313720925,1707610254656,-500.0,0.00038356,30]
[313720926,1707610254665,-500.0,0.00038356,30]
[313720927,1707610254674,-500.0,0.00038356,30]
[313720928,1707610254683,-752.25,0.00038356,30]
[313720929,1707610254695,-500.0,0.00038356,30]
[313720930,1707610254704,-1276.85,0.00038356,30]
[313720931,1707610254713,-500.0,0.00038356,30]
[313720932,1707610254723,-500.0,0.00038356,30]
[313720933,1707610254733,-503.83906669,0.00038356,30]
[313720934,1707610254743,-500.0,0.00038356,30]
[313720935,1707610254753,-500.0,0.00038356,30]
[313720936,1707610254763,-2174.32,0.00038356,30]
[313720937,1707610254772,-508.81460422,0.00038356,30]
[313720938,1707610254782,-500.0,0.00038356,30]
[313720939,1707610254791,-500.0,0.00038356,30]
[313720940,1707610254801,-4005.45,0.00038356,30]
[313720941,1707610254810,-500.0,0.00038356,30]
[313720942,1707610254819,-1918.97,0.00038356,30]
[313720943,1707610254828,-500.0,0.00038356,30]
[313720944,1707610254837,-500.0,0.00038356,30]
[313720945,1707610254846,-150.0,0.00038356,30]
[313720946,1707610254856,-500.0,0.00038356,30]
[313720947,1707610254866,-500.0,0.00038356,30]
[313720948,1707610254875,-500.0,0.00038356,30]
[313720949,1707610254884,-504.26453093,0.00038356,30]
[313720950,1707610254894,-500.0,0.00038356,30]
[313720951,1707610254903,-500.0,0.00038356,30]
[313720952,1707610254913,-500.0,0.00038356,30]
[313720953,1707610254924,-560.23962796,0.00038356,30]
[313720954,1707610254934,-500.0,0.00038356,30]
[313720955,1707610254945,-500.0,0.00038356,30]
[313720956,1707610254956,-500.0,0.00038356,30]
[313720957,1707610254965,-501.27818349,0.00038356,30]
[313720958,1707610254974,-500.0,0.00038356,30]
[313720959,1707610254986,-500.0,0.00038356,30]
[313720960,1707610254998,-500.0,0.00038356,30]
[313720961,1707610255007,-500.0,0.00038356,30]
[313720962,1707610255017,-500.0,0.00038356,30]
[313720963,1707610255028,-500.0,0.00038356,30]
[313720964,1707610255039,-500.0,0.00038356,30]
[313720965,1707610255047,-510.11974822,0.00038356,30]
[313720966,1707610255059,-500.0,0.00038356,30]
[313720967,1707610255071,-500.0,0.00038356,30]
[313720968,1707610255080,-500.0,0.00038356,30]
[313720969,1707610255089,-500.0,0.00038356,30]
[313720970,1707610255098,-500.0,0.00038356,30]
[313720971,1707610255107,-500.0,0.00038356,30]
[313720972,1707610255118,-500.0,0.00038356,30]
[313720973,1707610255127,-383.70748878,0.00038356,30]
[313720974,1707610255138,-500.0,0.00038356,30]
[313720975,1707610255148,-500.0,0.00038356,30]
[313720976,1707610255159,-500.0,0.00038356,30]
[313720977,1707610255169,-500.0,0.00038356,30]
[313720978,1707610255179,-500.0,0.00038356,30]
[313720979,1707610255190,-500.0,0.00038356,30]
[313720980,1707610255199,-707.06,0.00038356,30]
[313720981,1707610255209,-500.0,0.00038356,30]
[313720982,1707610255218,-500.0,0.00038356,30]
[313720983,1707610255227,-500.0,0.00038356,30]
[313720984,1707610255238,-500.0,0.00038356,30]
[313720985,1707610255247,-1238.59,0.00038356,30]
[313720986,1707610255256,-600.00931837,0.00038356,30]
[313720987,1707610255266,-500.0,0.00038356,30]
[313720988,1707610255276,-500.0,0.00038356,30]
[313720989,1707610255285,-518.75716612,0.00038356,30]
[313720990,1707610255294,-500.0,0.00038356,30]
[313720991,1707610255304,-500.0,0.00038356,30]
[313720992,1707610255314,-500.0,0.00038356,30]
[313720993,1707610255324,-500.0,0.00038356,30]
[313720994,1707610255335,-500.0,0.00038356,30]
[313720995,1707610255344,-500.0,0.00038356,30]
[313720996,1707610255354,-500.0,0.00038356,30]
[313720997,1707610255363,-500.6896118,0.00038356,30]
[313720998,1707610255372,-500.0,0.00038356,30]
[313720999,1707610255381,-34.70757506,0.00038356,30]
[313721000,1707610255402,-405.4670116,0.00038356,30]
[313721001,1707610255413,-59.82541334,0.00038356,30]
[313721002,1707610255422,-1160.92,0.00038356,30]
[313721003,1707610255432,-1803.92,0.00038356,30]
[313721004,1707610255441,-500.0,0.00038356,30]
[313721005,1707610255450,-500.0,0.00038356,30]
[313721006,1707610255460,-376.42047022,0.00038356,30]
[313721007,1707610255476,-123.57952978,0.00038356,30]
[313721008,1707610255485,-500.0,0.00038356,30]
[313721009,1707610255494,-500.0,0.00038356,30]
[313721010,1707610255503,-3578.72,0.00038356,30]
[313721011,1707610255513,-500.0,0.00038356,30]
[313721012,1707610255522,-730.93,0.00038356,30]
[313721013,1707610255531,-500.0,0.00038356,10]
[313721014,1707610255540,-500.0,0.00038356,30]
[313721015,1707610255549,-500.0,0.00038356,30]
[313721016,1707610255558,-500.0,0.00038356,30]
[313721017,1707610255567,-1000.0,0.00038356,120]
[313721018,1707610255577,-500.0,0.00038356,30]
[313721019,1707610255586,-500.0,0.00038356,30]
[313721020,1707610255595,-488.16866262,0.00038356,30]
[313721021,1707610255607,-11.83133738,0.00038356,30]
[313721022,1707610255617,-500.0,0.00038356,30]
[313721023,1707610255627,-213.79692408,0.00038356,30]
[313721024,1707610255747,-265.25707154,0.00038356,30]
[313721025,1707610255758,-620.15941707,0.00038356,30]
[313721026,1707610255769,-315.19030927,0.00038356,30]
[313721027,1707610255780,-474.77627804,0.00038356,30]
[313721028,1707610255789,-69.61905986,0.00038356,30]
[313721029,1707610255805,-430.38094014,0.00038356,30]
[313721030,1707610255813,-518.60362486,0.00038356,30]
[313721031,1707610256323,-500.0,0.00022064,2]
[313721032,1707610256333,-320.71424344,0.00022064,2]
[313721033,1707610256343,-150.01,0.00022999,2]
[313721034,1707610256354,-3312.93754323,0.00022999,2]
[313721035,1707610256363,-343.49637514,0.00038356,30]
[313721036,1707610256372,-500.0,0.00038356,30]
[313721037,1707610256382,-500.0,0.00038356,30]
[313721038,1707610256391,-500.0,0.00038356,30]
[313721039,1707610256400,-500.0,0.00038356,30]
[313721040,1707610256579,-575.35,0.00038356,30]
[313721041,1707610256589,-599.85,0.00038356,30]
[313721042,1707610256599,-2724.32,0.00038356,30]
[313721043,1707610256608,-500.0,0.00038356,30]
[313721044,1707610256617,-500.0,0.00038356,30]
[313721045,1707610256626,-623.66633684,0.00038356,30]
[313721046,1707610256635,-413.47736709,0.00038356,30]
[313721047,1707610256645,-1871.64,0.00038356,30]
[313721048,1707610256654,-500.0,0.00038356,30]
[313721049,1707610256663,-500.0,0.00038356,30]
[313721050,1707610256672,-500.0,0.00038356,30]
[313721051,1707610256681,-500.0,0.00038356,30]
[313721052,1707610256690,-508.58625279,0.00038356,30]
[313721053,1707610256699,-500.0,0.00038356,30]
[313721054,1707610256709,-500.0,0.00038356,30]
[313721055,1707610256718,-1077.6,0.00038356,30]
[313721056,1707610256727,-500.0,0.00038356,30]
[313721057,1707610256736,-500.0,0.00038356,30]
[313721058,1707610256746,-500.0,0.00038356,30]
[313721059,1707610256755,-500.0,0.00038356,30]
[313721060,1707610256763,-500.0,0.00038356,30]
[313721061,1707610256772,-500.0,0.00038356,30]
[313721062,1707610256781,-703.81,0.00038356,30]
[313721063,1707610256790,-1151.47,0.00038356,5]
[313721064,1707610256799,-505.94986159,0.00038356,30]
[313721065,1707610256808,-684.44,0.00038356,30]
[313721066,1707610256817,-500.0,0.00038356,30]
[313721067,1707610256826,-500.0,0.00038356,30]
[313721068,1707610256836,-446.42528865,0.00038356,30]
[313721069,1707610256845,-500.0,0.00038356,30]
[313721070,1707610256854,-500.0,0.00038356,30]
[313721071,1707610256863,-705.76,0.00038356,30]
[313721072,1707610256872,-512.15714552,0.00038356,30]
[313721073,1707610256881,-558.1503373,0.00038356,30]
[313721074,1707610256890,-891.28,0.00038356,30]
[313721075,1707610256899,-3377.35,0.00038356,30]
[313721076,1707610256909,-500.0,0.00038356,30]
[313721077,1707610256919,-500.0,0.00038356,30]
[313721078,1707610256930,-511.04583735,0.00038356,30]
[313721079,1707610256939,-500.0,0.00038356,30]
[313721080,1707610256948,-500.0,0.00038356,30]
[313721081,1707610256958,-515.94348388,0.00038356,30]
[313721082,1707610256967,-3353.73,0.00038356,30]
[313721083,1707610256976,-1396.26,0.00038356,30]
[313721084,1707610256985,-500.0,0.00038356,30]
[313721085,1707610256994,-500.0,0.00038356,30]
[313721086,1707610257005,-2242.41,0.00038356,30]
[313721087,1707610257014,-714.61520107,0.00038356,30]
[313721088,1707610257030,-512.43479893,0.00038356,30]
[313721089,1707610257040,-500.0,0.00038356,30]
[313721090,1707610257049,-523.95,0.00038356,30]
[313721091,1707610257058,-500.0,0.00038356,30]
[313721092,1707610257067,-500.0,0.00038356,30]
[313721093,1707610257077,-500.0,0.00038356,30]
[313721094,1707610257086,-500.0,0.00038356,30]
[313721095,1707610257096,-1820.65,0.00038356,30]
[313721096,1707610257105,-500.0,0.00038356,30]
[313721097,1707610257114,-500.0,0.00038356,30]
[313721098,1707610257123,-508.58037076,0.00038356,30]
[313721099,1707610257132,-500.0,0.00038356,30]
[313721100,1707610257142,-500.0,0.00038356,30]
[313721101,1707610257151,-500.0,0.00038356,30]
[313721102,1707610257160,-2990.29,0.00038356,30]
[313721103,1707610257170,-500.0,0.00038356,30]
[313721104,1707610257178,-257.70949532,0.00038356,30]
[313721105,1707610257188,-508.73962755,0.00038356,30]
[313721106,1707610257197,-3650.43,0.00038356,30]
[313721107,1707610257206,-3060.51,0.00038356,30]
[313721108,1707610257214,-500.0,0.00038356,30]
[313721109,1707610257224,-500.0,0.00038356,30]
[313721110,1707610257233,-1010.30770744,0.00038356,30]
[313721111,1707610257284,-1916.75229256,0.00038356,30]
[313721112,1707610257294,-232.43769943,0.00038356,30]
[313721113,1707610257303,-500.0,0.00038356,30]
[313721114,1707610257311,-510.65,0.00038356,30]
[313721115,1707610257321,-648.57696516,0.00038356,30]
[313721116,1707610257330,-1093.86,0.00038356,30]
[313721117,1707610257339,-500.0,0.00038356,30]
[313721118,1707610257348,-910.65,0.00038356,30]
[313721119,1707610257357,-2012.7,0.00038356,30]
[313721120,1707610257368,-500.0,0.00038356,30]
[313721121,1707610257377,-500.0,0.00038356,30]
[313721122,1707610257386,-500.0,0.00038356,30]
[313721123,1707610257395,-500.0,0.00038356,30]
[313721124,1707610257405,-807.59,0.00038356,30]
[313721125,1707610257414,-416.0011916,0.00038356,30]
[313721126,1707610257426,-83.9988084,0.00038356,30]
[313721127,1707610257435,-500.0,0.00038356,30]
[313721128,1707610257444,-500.0,0.00038356,30]
[313721129,1707610257453,-1915.67,0.00038356,30]
[313721130,1707610257462,-560.32,0.00038356,30]
[313721131,1707610257472,-500.0,0.00038356,30]
[313721132,1707610257481,-500.0,0.00038356,30]
[313721133,1707610257490,-217.0834916,0.00038356,30]
[313721134,1707610257504,-2059.8065084,0.00038356,30]
[313721135,1707610257514,-508.17602279,0.00038356,30]
[313721136,1707610257523,-500.0,0.00038356,30]
[313721137,1707610257532,-500.0,0.00038356,30]
[313721138,1707610257541,-500.0,0.00038356,30]
[313721139,1707610257550,-500.0,0.00038356,30]
[313721140,1707610257559,-500.0,0.00038356,30]
[313721141,1707610257568,-517.48,0.00038356,30]
[313721142,1707610257577,-500.0,0.00038356,30]
[313721143,1707610257586,-514.46709881,0.00038356,30]
[313721144,1707610257596,-500.0,0.00038356,30]
[313721145,1707610257605,-500.0,0.00038356,30]
[313721146,1707610257614,-500.0,0.00038356,30]
[313721147,1707610257624,-501.8597257,0.00038356,30]
[313721148,1707610257633,-2119.74,0.00038356,30]
[313721149,1707610257642,-500.0,0.00038356,30]
[313721150,1707610257651,-576.13,0.00038356,30]
[313721151,1707610257661,-1772.33,0.00038356,30]
[313721152,1707610257670,-500.0,0.00038356,30]
[313721153,1707610257679,-500.0,0.00038356,30]
[313721154,1707610257688,-658.24,0.00038356,30]
[313721155,1707610257697,-500.0,0.00038356,30]
[313721156,1707610257707,-527.17,0.00038356,30]
[313721157,1707610257716,-662.01,0.00038356,30]
[313721158,1707610257725,-857.11,0.00038356,30]
[313721159,1707610257734,-500.0,0.00038356,30]
[313721160,1707610257744,-667.84,0.00038356,30]
[313721161,1707610257753,-500.0,0.00038356,30]
[313721162,1707610257762,-500.0,0.00038356,30]
[313721163,1707610257771,-500.0,0.00038356,30]
[313721164,1707610257780,-776.11,0.00038356,30]
[313721165,1707610257788,-507.72,0.00038356,30]
[313721166,1707610257798,-578.66465498,0.00038356,30]
[313721167,1707610257806,-500.0,0.00038356,30]
[313721168,1707610257815,-500.0,0.00038356,30]
[313721169,1707610257824,-500.0,0.00038356,30]
[313721170,1707610257833,-500.0,0.00038356,30]
[313721171,1707610257844,-1501.65,0.00038356,30]
[313721172,1707610257854,-3586.85,0.00038356,30]
[313721173,1707610257863,-769.64598932,0.00038356,30]
[313721174,1707610257876,-2817.20401068,0.00038356,30]
[313721175,1707610257886,-500.0,0.00038356,30]
[313721176,1707610257895,-3586.85,0.00038356,30]
[313721177,1707610257904,-500.0,0.00038356,30]
[313721178,1707610257913,-327.2343851,0.00038356,30]
[313721179,1707610257925,-3259.6156149,0.00038356,30]
[313721180,1707610257934,-500.0,0.00038356,30]
[313721181,1707610257943,-500.0,0.00038356,30]
[313721182,1707610257952,-3586.85,0.00038356,30]
[313721183,1707610257961,-500.0,0.00038356,30]
[313721184,1707610257970,-500.0,0.00038356,30]
[313721185,1707610257979,-100.75317983,0.00038356,30]
[313721186,1707610257991,-2726.31682017,0.00038356,30]
[313721187,1707610258003,-3586.85,0.00038356,30]
[313721188,1707610258013,-500.0,0.00038356,30]
[313721189,1707610258022,-2130.61704445,0.00038356,30]
[313721190,1707610258034,-1456.23295555,0.00038356,30]
[313721191,1707610258044,-3586.85,0.00038356,30]
[313721192,1707610258053,-3586.85,0.00038356,30]
[313721193,1707610258062,-447.61570597,0.00038356,30]
[313721194,1707610258075,-3139.23429403,0.00038356,30]
[313721195,1707610258084,-3586.85,0.00038356,30]
[313721196,1707610258093,-500.0,0.00038356,30]
[313721197,1707610258103,-1717.75594086,0.00038356,30]
[313721198,1707610258526,-386.23,0.00038346,10]
[313721199,1707610258535,-1869.09405914,0.00038356,30]
[313721200,1707610258545,-1990.41,0.00038356,30]
[313721201,1707610258555,-3586.85,0.00038356,30]
[313721202,1707610258564,-500.0,0.00038356,30]
[313721203,1707610258574,-3586.85,0.00038356,30]
[313721204,1707610258583,-3586.85,0.00038356,30]
[313721205,1707610258592,-500.0,0.00038356,30]
[313721206,1707610258602,-3586.85,0.00038356,30]
[313721207,1707610258611,-543.5,0.00038356,30]
[313721208,1707610258621,-500.0,0.00038356,30]
[313721209,1707610258631,-3586.85,0.00038356,30]
[313721210,1707610258640,-3586.85,0.00038356,30]
[313721211,1707610258650,-3586.85,0.00038356,30]
[313721212,1707610258659,-569.32,0.00038356,30]
[313721213,1707610258669,-3586.85,0.00038356,30]
[313721214,1707610258678,-3586.85,0.00038356,30]
[313721215,1707610258687,-1316.8,0.00038356,30]
[313721216,1707610258697,-3586.85,0.00038356,30]
[313721217,1707610258706,-2330.59,0.00038356,30]
[313721218,1707610258715,-3586.85,0.00038356,30]
[313721219,1707610258724,-500.0,0.00038356,30]
[313721220,1707610258733,-3586.87981926,0.00038356,30]
[313721221,1707610258742,-2839.36,0.00038356,30]
[313721222,1707610258751,-716.42,0.00038356,30]
[313721223,1707610258760,-500.0,0.00038356,30]
[313721224,1707610258769,-500.0,0.00038356,30]
[313721225,1707610258778,-678.57,0.00038356,30]
[313721226,1707610258787,-500.0,0.00038356,30]
[313721227,1707610258796,-500.0,0.00038356,30]
[313721228,1707610258806,-3208.55,0.00038356,30]
[313721229,1707610258815,-500.0,0.00038356,30]
[313721230,1707610258824,-500.0,0.00038356,30]
[313721231,1707610258833,-500.0,0.00038356,30]
[313721232,1707610258841,-1603.06,0.00038356,30]
[313721233,1707610258851,-596.58,0.00038356,30]
[313721234,1707610258861,-500.0,0.00038356,30]
[313721235,1707610258870,-628.2,0.00038356,2]
[313721236,1707610258879,-500.0,0.00038356,30]
[313721237,1707610258889,-500.0,0.00038356,30]
[313721238,1707610258898,-832.17,0.00038356,30]
[313721239,1707610258906,-5377.42,0.00038356,30]
[313721240,1707610258916,-500.0,0.00038356,30]
[313721241,1707610258925,-505.94658282,0.00038356,30]
[313721242,1707610258934,-500.0,0.00038356,30]
[313721243,1707610258943,-500.0,0.00038356,30]
[313721244,1707610258952,-500.0,0.00038356,30]
[313721245,1707610258962,-500.0,0.00038356,30]
[313721246,1707610258971,-500.0,0.00038356,30]
[313721247,1707610258981,-541.7,0.00038356,30]
[313721248,1707610258992,-1918.24,0.00038356,30]
[313721249,1707610259004,-2128.25,0.00038356,30]
[313721250,1707610259013,-1928.27,0.00038356,30]
[313721251,1707610259022,-741.37,0.00038356,30]
[313721252,1707610259031,-508.48481909,0.00038356,30]
[313721253,1707610259041,-2025.45,0.00038356,30]
[313721254,1707610259050,-564.69,0.00038356,30]
[313721255,1707610259058,-500.0,0.00038356,30]
[313721256,1707610259068,-551.93814236,0.00038356,30]
[313721257,1707610259077,-500.0,0.00038356,30]
[313721258,1707610259087,-1483.55,0.00038356,30]
[313721259,1707610259096,-611.31,0.00038356,30]
[313721260,1707610259105,-500.0,0.00038356,30]
[313721261,1707610259115,-280.47,0.00038356,30]
[313721262,1707610259289,-1635.02,0.00038356,30]
[313721263,1707610259298,-500.0,0.00038356,30]
[313721264,1707610259308,-814.81,0.00038356,2]
[313721265,1707610259354,-500.0,0.00038356,30]
[313721266,1707610259365,-500.0,0.00038356,30]
[313721267,1707610259374,-500.0,0.00038356,30]
[313721268,1707610259384,-1000.0,0.00038356,7]
[313721269,1707610259394,-2358.06,0.00038356,30]
[313721270,1707610259403,-500.0,0.00038356,30]
[313721271,1707610259412,-1500.99,0.00038356,30]
[313721272,1707610259421,-586.84,0.00038356,30]
[313721273,1707610259430,-685.12,0.00038356,30]
[313721274,1707610259439,-500.0,0.00038356,30]
[313721275,1707610259448,-2185.3,0.00038356,30]
[313721276,1707610259458,-500.0,0.00038356,30]
[313721277,1707610259467,-556.32654851,0.00038356,30]
[313721278,1707610259477,-500.0,0.00038356,30]
[313721279,1707610259486,-645.12,0.00038356,30]
[313721280,1707610259495,-517.06202453,0.00038356,30]
[313721281,1707610259504,-500.0,0.00038356,30]
[313721282,1707610259514,-1843.19,0.00038356,30]
[313721283,1707610259523,-500.0,0.00038356,30]
[313721284,1707610259532,-500.0,0.00038356,30]
[313721285,1707610259541,-1277.27,0.00038356,30]
[313721286,1707610259550,-500.0,0.00038356,30]
[313721287,1707610259559,-500.0,0.00038356,30]
[313721288,1707610259569,-500.0,0.00038356,30]
[313721289,1707610259579,-506.56496068,0.00038356,30]
[313721290,1707610259588,-500.0,0.00038356,30]
[313721291,1707610259597,-2137.06,0.00038356,30]
[313721292,1707610259607,-1403.07,0.00038356,30]
[313721293,1707610259616,-513.86767531,0.00038356,30]
[313721294,1707610259625,-500.0,0.00038356,30]
[313721295,1707610259634,-509.43243381,0.00038356,30]
[313721296,1707610259644,-500.0,0.00038356,30]
[313721297,1707610259654,-500.0,0.00038356,30]
[313721298,1707610259663,-1101.28,0.00038356,30]
[313721299,1707610259672,-500.0,0.00038356,30]
[313721300,1707610259682,-500.0,0.00038356,30]
[313721301,1707610259691,-1419.67,0.00038356,30]
[313721302,1707610259700,-500.0,0.00038356,30]
[313721303,1707610259710,-500.0,0.00038356,30]
[313721304,1707610259719,-500.0,0.00038356,30]
[313721305,1707610259728,-517.91046516,0.00038356,30]
[313721306,1707610259738,-897.02,0.00038356,30]
[313721307,1707610259747,-500.0,0.00038356,30]
[313721308,1707610259756,-776.19,0.00038356,30]
[313721309,1707610259765,-1960.65,0.00038356,30]
[313721310,1707610259774,-620.72,0.00038356,30]
[313721311,1707610259783,-4771.36,0.00038356,30]
[313721312,1707610259792,-500.0,0.00038356,30]
[313721313,1707610259801,-4583.73,0.00038356,30]
[313721314,1707610259810,-958.98,0.00038356,30]
[313721315,1707610259820,-500.0,0.00038356,30]
[313721316,1707610259828,-2072.08,0.00038356,30]
[313721317,1707610259838,-500.0,0.00038356,30]
[313721318,1707610259847,-500.0,0.00038356,30]
[313721319,1707610259856,-633.78,0.00038356,30]
[313721320,1707610259866,-1220.94,0.00038356,30]
[313721321,1707610259876,-500.0,0.00038356,30]
[313721322,1707610259885,-2588.33,0.00038356,30]
[313721323,1707610259895,-502.26,0.00038356,30]
[313721324,1707610259905,-1490.79,0.00038356,5]
[313721325,1707610259914,-534.82,0.00038356,30]
[313721326,1707610259923,-500.0,0.00038356,30]
[313721327,1707610259932,-500.0,0.00038356,30]
[313721328,1707610259941,-500.0,0.00038356,30]
[313721329,1707610259950,-604.11260183,0.00038356,30]
[313721330,1707610259961,-585.3,0.00038356,30]
[313721331,1707610259971,-500.0,0.00038356,30]
[313721332,1707610259980,-1608.44,0.00038356,30]
[313721333,1707610259991,-500.0,0.00038356,30]
[313721334,1707610260003,-1594.61,0.00038356,30]
[313721335,1707610260013,-500.0,0.00038356,30]
[313721336,1707610260022,-500.0,0.00038356,30]
[313721337,1707610260031,-500.0,0.00038356,30]
[313721338,1707610260040,-500.0,0.00038356,30]
[313721339,1707610260050,-754.42,0.00038356,30]
[313721340,1707610260059,-500.0,0.00038356,30]
[313721341,1707610260069,-500.0,0.00038356,30]
[313721342,1707610260079,-500.0,0.00038356,30]
[313721343,1707610260089,-500.0,0.00038356,30]